Cogmind - Beta 10.2 @@@ ROGUE MODE // 2020.10.30 @ 01:54:00 // Halloween2020/ForbiddenLore Player: Zyalin Result: Destroyed by G-34 Mercenary with Small Laser Performance ------------- Evolutions (1) 500 Regions Visited (3) 600 Robots Destroyed (24) 120 Value Destroyed (521) 521 Prototype IDs (0) 0 Alien Tech Used (0) 0 Bonus (0) 0 TOTAL SCORE: 1741 Bonus ------- None Cogmind --------- Core Integrity 0/400 Matter 300/300 Energy 98/100 System Corruption 2% Temperature Cool (6) Movement Core (50) Location -9/Storage Parts ------- > --- POWER (1) -------- (None) > --- PROPULSION (2) --- (None) > --- UTILITY (4) ------ (None) > --- WEAPON (2) ------- (None) > --- INVENTORY (4) ---- High-capacity Storage Unit High-capacity Storage Unit High-capacity Storage Unit Hardened Light Armor Plating Peak State ------------ > --- POWER ------------ Improved Ion Engine > --- PROPULSION ------- Light Treads Light Treads > --- UTILITY ---------- Small Storage Unit Light Armor Plating > --- WEAPON ----------- Heavy EM Pulse Gun Spread Laser > --- INVENTORY -------- Ion Engine Light Ion Engine Medium Laser Small Laser Assault Rifle [Rating: 10] Favorites ----------- Power Improved Ion Engine Engine Improved Ion Engine Propulsion Light Treads Treads Light Treads Leg Aluminum Leg Flight Unit Flight Unit Utility Heat Sink Device Heat Sink Storage Large Matter Pod Protection Light Armor Plating Weapon Assault Rifle Energy Gun Small Laser Ballistic Gun Assault Rifle Build | -11 -10 -9 -9 ------- Run | Scr Mat Mat Sto Slots Evolved 2 | . . 2 . Power . | . . . . Propulsion . | . . . . Utility 2 | . . 2 . Weapon . | . . . . Parts Attached 39 | 6 21 12 . Power 7 | 1 3 3 . Engine 7 | 1 3 3 . Core . | . . . . Reactor . | . . . . Propulsion 12 | 2 8 2 . Treads 6 | 2 3 1 . Leg 4 | . 3 1 . Wheel . | . . . . Hover . | . . . . Flight 2 | . 2 . . Utility 7 | 1 4 2 . Device 2 | . 1 1 . Storage 4 | 1 2 1 . Processor . | . . . . Hackware . | . . . . Protection 1 | . 1 . . Artifact . | . . . . Weapon 13 | 2 6 5 . Energy Gun 5 | 2 2 1 . Energy Cannon . | . . . . Ballistic Gun 8 | . 4 4 . Ballistic Cannon . | . . . . Launcher . | . . . . Special Weapon . | . . . . Impact Weapon . | . . . . Slashing Weapon . | . . . . Piercing Weapon . | . . . . Special Melee Weapon . | . . . . Unidentified Prototypes . | . . . . Parts Lost 16 | . 4 12 . Power 3 | . . 3 . Propulsion 3 | . 1 2 . Utility 3 | . 1 2 . Weapon 7 | . 2 5 . Highest Loss Streak 10 | . 4 10 . Average Slot Usage (%) 86 | . 88 83 . Engine 12 | . 13 8 . Treads 15 | . 16 14 . Leg 6 | . 7 4 . Flight 1 | . 3 . . Device 9 | . 5 17 . Storage 14 | . 11 18 . Protection 1 | . 1 . . Energy Gun 6 | . 10 . . Ballistic Gun 17 | . 17 18 . Naked Turns 24 | . . 16 8 Heaviest Build 43 | 12 32 43 . Greatest Support 40 | 40 40 40 3 Greatest Overweight (x) 11 | . 9 11 . Average Overweight (x) . | . . 1 . Largest Inventory Capacity 12 | 6 10 12 4 Average Capacity 6 | 5 5 9 4 Most Carried 8 | 2 7 8 4 Average Carried 4 | 1 3 5 4 Final Capacity 6 | 6 4 4 4 Final Carried 4 | 2 4 4 4 Class Distribution -------------------- 74% | Mutant 25% | Scavenger-Mutant Dominant Class ---------------- Mutant | -10/Materials Scavenger-Mutant | -9/Materials Mutant | -9/Storage Resources | -11 -10 -9 -9 ----------- Run | Scr Mat Mat Sto Matter Collected 809 | 111 344 354 . Remotely . | . . . . Salvage Created 776 | . 410 366 . Parts 45 | . 23 22 . Haulers Intercepted 2 | . 1 1 . Recyclers Shooed . | . . . . Parts Field Recycled . | . . . . Retrieved Matter . | . . . . Parts Self-Destructed . | . . . . Prevented . | . . . . Kills | -11 -10 -9 -9 ------- Run | Scr Mat Mat Sto Combat Hostiles Destroyed 20 | . 11 9 . Guns 18 | . 9 9 . AOE 2 | . 2 . . Classes Destroyed 6 | . 4 2 . Worker 1 | . . 1 . Hauler 2 | . 1 1 . Recycler 1 | . 1 . . Swarmer 9 | . 6 3 . Grunt 10 | . 5 5 . Duelist 1 | . . 1 . Best Kill Streak 5 | . 5 3 . Combat Bots Only 5 | . 5 3 . Max Kills in Single Turn 3 | . 3 1 . Gunslinging . | . . . . Exploded 2 | . 2 . . Melee . | . . . . Uniques/NPCs Destroyed . | . . . . Combat | -11 -10 -9 -9 -------- Run | Scr Mat Mat Sto Damage Taken 1932 | . 687 1233 12 Core 519 | . 113 394 12 Absorbed by Shields . | . . . . Core Remaining (%) 77 | 100 54 . . Volleys Fired 88 | . 34 54 . Largest 2 | . 2 2 . Hottest 110 | . 110 60 . Shots Fired 151 | . 56 95 . Gun 151 | . 56 95 . Cannon . | . . . . Launcher . | . . . . Special . | . . . . Kinetic 100 | . 16 84 . Thermal 33 | . 22 11 . Explosive . | . . . . Electromagnetic 18 | . 18 . . Robot Hit Streak 13 | . 13 12 . Robot Miss Streak 4 | . 4 3 . Penetration Max . | . . . . Secondary Targets 4 | . 2 2 . Max Gunslinging Chain 1 | . 1 1 . Shots Hit Robots 102 | . 44 58 . Core Hits 55 | . 31 24 . Critical Hits 1 | . 1 . . Critical Kills . | . . . . Critical Parts Destroyed 1 | . 1 . . Melee Attacks . | . . . . Impact . | . . . . Slashing . | . . . . Piercing . | . . . . Sneak Attacks . | . . . . Combat Hostiles . | . . . . Follow-up Attacks . | . . . . Damage Inflicted 1510 | . 658 852 . Guns 1180 | . 588 592 . Cannons . | . . . . Explosions 303 | . 69 234 . Melee . | . . . . Ramming 27 | . 1 26 . Kinetic 727 | . 135 592 . Thermal 549 | . 315 234 . Explosive . | . . . . Electromagnetic 207 | . 207 . . Impact . | . . . . Slashing . | . . . . Piercing . | . . . . Highest Corruption 2 | . . 2 2 Average Corruption 2 | . . 2 2 Corruption Purged . | . . . . Overload Shots . | . . . . Overflow Damage 183 | . . 183 . Projectiles . | . . . . Explosions 183 | . . 183 . Melee . | . . . . Knockbacks . | . . . . Impact . | . . . . Kinetic . | . . . . Secondary . | . . . . Self-Inflicted Damage 146 | . 25 121 . Shots 2 | . 1 1 . Rammed 8 | . 1 7 . Targets Rammed 8 | . 1 7 . Kicked . | . . . . Crushed . | . . . . Highest Temperature 426 | . 426 . . Average Temperature 160 | . 160 . . Received Heat Transfer 489 | . 96 387 6 Effects 8 | . 8 . . Shutdowns 1 | . 1 . . Energy Bleed 3 | . 3 . . Interference 2 | . 2 . . Short Circuit 1 | . 1 . . Damage (minor) 1 | . 1 . . Siege Activations . | . . . . Robots Corrupted . | . . . . Combat Hostiles . | . . . . Parts Fried 1 | . 1 . . Impact Corruptions . | . . . . Robots Melted . | . . . . Combat Hostiles . | . . . . Parts Melted 1 | . 1 . . Heat Transferred 742 | . 592 150 . Parts Sabotaged . | . . . . Parts Stolen . | . . . . Parts Stripped . | . . . . Power Chain Reactions 1 | . 1 . . Missiles Intercepted . | . . . . Alert | -11 -10 -9 -9 ------- Run | Scr Mat Mat Sto Peak Influence 219 | . 219 172 29 Initial 29 | . . 5 29 Average 71 | . 73 78 29 Maximum Alert Level 1 | . 1 . . Low Security (%) 96 | 100 93 100 100 Level 1 3 | . 6 . . Level 2 . | . . . . Level 3 . | . . . . Level 4 . | . . . . Level 5 . | . . . . High Security . | . . . . Max Security . | . . . . Squads Dispatched 3 | . 1 2 . Investigation 2 | . 1 1 . Extermination . | . . . . Reinforcement 1 | . . 1 . Assault . | . . . . Garrison . | . . . . Intercept . | . . . . Construction Impeded . | . . . . Haulers Reinforced . | . . . . Stealth | -11 -10 -9 -9 --------- Run | Scr Mat Mat Sto Distress Signals 2 | . 1 1 . Communications Jammed . | . . . . Distress Signals . | . . . . Times Spotted 44 | . 20 22 2 Peak Tracking Total 7 | . 7 6 . Tactical Retreats 2 | . . 2 . Traps | -11 -10 -9 -9 ------- Run | Scr Mat Mat Sto Traps Triggered 6 | . 5 1 . Indirectly . | . . . . Trap Hack Attempts . | . . . . Triggered . | . . . . Disarmed . | . . . . Reprogrammed . | . . . . Reused . | . . . . Traps Extracted . | . . . . Installed . | . . . . Triggered . | . . . . Machines | -11 -10 -9 -9 ---------- Run | Scr Mat Mat Sto Machines Disabled 2 | . . 2 . Max in Single Turn 2 | . . 2 . Machines Sabotaged . | . . . . Garrisons Compromised . | . . . . Overloaded Fab Kills . | . . . . Fab Network Shutdowns . | . . . . Hacking | -11 -10 -9 -9 --------- Run | Scr Mat Mat Sto Machines Accessed 9 | . 8 1 . Terminals 9 | . 8 1 . Fabricators . | . . . . Repair Stations . | . . . . Recycling Units . | . . . . Scanalyzers . | . . . . Garrison Access . | . . . . Total Hacks 14 | . 13 1 . Successful 11 | . 10 1 . Failed 3 | . 3 . . Catastrophic . | . . . . Database Lockouts . | . . . . Manual 30 | . 25 1 4 Terminals 14 | . 13 1 . Fabricators . | . . . . Repair Stations . | . . . . Recycling Units . | . . . . Scanalyzers . | . . . . Garrison Access . | . . . . Terminal Hacks 2 | . 2 . . Record 1 | . 1 . . Branch Access Points 1 | . 1 . . Fabricator Hacks . | . . . . Repair Station Hacks . | . . . . Recycling Unit Hacks . | . . . . Scanalyzer . | . . . . Garrison Access Hacks . | . . . . Unauthorized Hacks 9 | . 8 1 . Terminals 9 | . 8 1 . Botnet 9 | . 8 1 . Fabricators . | . . . . Repair Stations . | . . . . Recycling Units . | . . . . Scanalyzers . | . . . . Garrison Access . | . . . . Data Cores Recovered . | . . . . Used . | . . . . Hacking Detections 7 | . 5 1 1 Full Trace Events 2 | . 2 . . Feedback Events . | . . . . Feedback Blocked . | . . . . Robot Schematics Acquired . | . . . . Robots Built . | . . . . Matter . | . . . . Time . | . . . . Total Robot Build Rating . | . . . . Part Schematics Acquired . | . . . . Parts Built . | . . . . Matter . | . . . . Time . | . . . . Total Part Build Rating . | . . . . Parts Repaired . | . . . . Time . | . . . . Parts Recycled . | . . . . Recycled Matter . | . . . . Retrieved Matter . | . . . . Retrieved Components . | . . . . Parts Scanalyzed . | . . . . Part Schematics Acquired . | . . . . Parts Damaged . | . . . . Bothacking | -11 -10 -9 -9 ------------ Run | Scr Mat Mat Sto Used RIF Installer . | . . . . Robots Hacked . | . . . . Non-combat . | . . . . Combat . | . . . . Robot Hacks Applied . | . . . . Relay Couplers Released . | . . . . Robots Rewired . | . . . . Allies Hacked . | . . . . Hacks Repelled . | . . . . Allies | -11 -10 -9 -9 -------- Run | Scr Mat Mat Sto Total Allies . | . . . . Largest Group . | . . . . Highest-Rated Group . | . . . . Highest-Rated Ally . | . . . . Total Orders . | . . . . Ally Attacks . | . . . . Total Damage . | . . . . Kills . | . . . . Allies Corrupted . | . . . . Allies Melted . | . . . . Intel | -11 -10 -9 -9 ------- Run | Scr Mat Mat Sto Robot Analysis Total . | . . . . Derelict Logs Recovered . | . . . . Drone Launches . | . . . . Drone Recoveries . | . . . . Exploration | -11 -10 -9 -9 ------------- Run | Scr Mat Mat Sto Turns Passed 1616 | 67 992 549 8 Spaces Moved 830 | 37 559 218 16 Core 50 | 2 6 26 16 Treads 322 | 35 163 124 . Legs 435 | . 367 68 . Wheels . | . . . . Hover . | . . . . Flight 23 | . 23 . . Fastest Speed 50 | 50 100 50 50 Average Speed 154 | 154 150 169 50 Slowest Speed 600 | 160 540 600 50 Overloaded Moves . | . . . . Propulsion Burnouts . | . . . . Robots Hopped . | . . . . Cave-ins Triggered . | . . . . Exploration Rate (%) 34 | 4 89 36 8 Regions Visited 3 Branch Regions 1 Pre-discovered Areas . | . . . . Known Exits Taken . | . . . . Unknown Exits Taken 3 | 1 1 1 . Scrap Searched . | . . . . Spaces Dug . | . . . . Terrain Destroyed 31 | . 4 27 . Melee . | . . . . Projectile . | . . . . AOE 31 | . 4 27 . Terrain Rammed . | . . . . Walls Destroyed . | . . . . Machines Disabled . | . . . . Actions | -11 -10 -9 -9 --------- Run | Scr Mat Mat Sto Total 1011 | 44 648 303 16 Wait 30 | . 24 6 . Move 827 | 36 558 217 16 Hop . | . . . . Pick Up 7 | 2 2 3 . Fast Attach 25 | 6 15 4 . Attach 7 | . 1 6 . Detach 4 | . 2 2 . Swap 7 | . 5 2 . Drop 8 | . 6 2 . Fire 88 | . 34 54 . Melee . | . . . . Ram 8 | . 1 7 . Kick . | . . . . Crush . | . . . . Escape Stasis . | . . . . Rewire . | . . . . Trap . | . . . . Miscellaneous . | . . . . Route ------- -11/Scrapyard -10/Materials (discovered 5 exits: *Mat x3 / *Min x2) -9/Materials (discovered 3 exits: [*Mat] / *Sto x2) -9/Storage History --------- Turn | Location | Event 2 | -11/Scrapyard | Met Revision 17 36 | -11/Scrapyard | Discovered new exit (range 15) 68 | -11/Scrapyard | Entered Materials 169 | -10/Materials | Discovered new exit (range 12) 290 | -10/Materials | Discovered new exit (range 11) 336 | -10/Materials | Build established: Mutant 456 | -10/Materials | Lost 4 parts (1n1u2w) 473 | -10/Materials | Discovered new exit (range 11) 520 | -10/Materials | Identified exit to Mines 651 | -10/Materials | Discovered new exit (range 16) 880 | -10/Materials | Discovered new exit (range 12) 1060 | -10/Materials | Entered another Materials area 1060 | -9/Materials | Evolved 2 slots: Utility x2 1221 | -9/Materials | Discovered new exit (range 13) 1399 | -9/Materials | Discovered new exit (range 7) 1404 | -9/Materials | Build established: Scavenger-Mutant 1545 | -9/Materials | Core integrity fell below 50% 1590 | -9/Materials | Lost 10 parts (1p2n2u5w) 1596 | -9/Materials | Core integrity fell below 20% 1597 | -9/Materials | Discovered new exit (range 14) 1609 | -9/Materials | Entered Storage 1617 | -9/Storage | Destroyed by G-34 Mercenary with Small Laser Last Messages --------------- 01591_ U-05 Engineer lays Concrete. 01591_ U-05 Engineer builds a Wall. 01592_ U-05 Engineer lays Concrete. 01593_ Dropped Lrg. Matter Pod. 01593_ U-05 Engineer lays Concrete. 01594_ U-05 Engineer builds a Wall. 01596_ U-05 Engineer lays Concrete. 01597_ EXIT=FOUND 01598_ T-07 Excavator is excavating. 01600_ Slammed into G-34 Mercenary. 01602_ T-07 Excavator is excavating. 01603_ Slammed into G-34 Mercenary. 01605_ Slammed into Y-45 Defender. 01606_ T-07 Excavator is excavating. 01607_ Slammed into Y-45 Defender. 01607_ Destabilizing: System corrupted (+2). LOCATION=UNKNOWN GOAL=ESCAPE 01613_ Connecting with Terminal... 01613_ Current location identified: Storage Map ----- +----------------------------------------------------+ | | | | | | | | | | | | | | | | | | | | | | | ????????????????????????????????????????????? | | ????????????????????????????????????????????? | | ????????????????????????????????????????????? | | ????????????????????????????????????????????? | | ??????????????#######???????????????????????? | | ????????????? g???????????????????????? | | ????????????? g ??????????????????????? | | ???????????? [[[ ??????????????????????? | | ???????????? [[[ ??????????#####??????? | | ???????????? [[% ??????????# #??????? | | ???????????# ?????????# #??????? | | ?????????????? ?????????# #??????? | | ?????????????????# ????????# #??????? | | ?????????????????# ######### #??????? | | ?????????????????# @ #??????? | | ?????????????????# #####T######### #??????? | | ???????????????????????##????????# #??????? | | ????????????????????????????????#T #??????? | | ????????????????????????????????## #??????? | | ?????????????????????????????????# #??????? | | ?????????????????????????????????# #??????? | | ?????????????????????????????????# #??????? | | ?????????????????????????????????# #??????? | | ?????????????????????????????????# #??????? | | ?????????????????????????????????+ +??????? | | ?????????????????????????????????? #??????? | | ?????????????????????????????????? #??????? | | ?????????????????????????????????? #??????? | | ?????????????????????????????????? #??????? | | ?????????????????????????????????? #??????? | | ?????????????????????????????????? #??????? | | ?????????????????????????????????? ???????? | | ????????????????????????????????????????????? | | ????????????????????????????????????????????? | | ????????????????????????????????????????????? | | ????????????????????????????????????????????? | | ????????????????????????????????????????????? | | ????????????????????????????????????????????? | | ????????????????????????????????????????????? | +----------------------------------------------------+ Best States ------------- Heat Dissipation 48 Energy Generation 12 Energy Capacity 265 Matter Stores 401 Matter Capacity 450 Sight Range 16 Terrain Scan Density 10 Armor Coverage 150 Evasion (%) 50 Recoil Reduction 2 Item Schematics ----------------- None Robot Schematics ------------------ None Fabricated ------------ Nothing Alien Tech Used ----------------- None Achievements -------------- None Challenges ------------ None Game ------ Seed RiotMatterShotgun Manual? 0 Play Time 00:15:13 Cumulative 382.0 hours Start 2020.10.30 @ 01:27:25 End 2020.10.30 @ 01:54:00 Sessions 3 Manual Loads 0 Difficulty Rogue Special Mode Halloween2020/ForbiddenLore Game No. 248 Rogue 247 Adventurer 0 Explorer 1 Win Type - Total 38 Types 29/2/4/2/1/0/0/0/0 Lore% 88 Gallery% 91 Achievement% 86 Wizard Run 0 Options --------- ASCII 0 Keyboard 0 Movement Numpad Keybinds 0 Fullscreen 1 Font 18/X11Bold Map View 76x50 Tactical HUD 1 Map Filters NONE Filters NONE Steam 1 RUN: d659bbcd-5b76-4713-9a41-f1006c5bd0e6